bitfinex/quotes_ETHUSD_20240721
["timestamp","ask_amount","ask_price","bid_price","bid_amount"]
[1721560440941,0.55,3501.3,3501.1,0.99303038]
[1721560441123,0.55,3501.3,3501.0,0.66505786]
[1721560441439,0.55,3501.3,3500.8,0.94889744]
[1721560441440,0.06475636,3501.2,3500.8,0.94889744]
[1721560441630,0.55,3501.3,3500.6,1.17208247]
[1721560441631,0.55,3501.1,3500.6,1.17208247]
[1721560441808,0.55,3501.1,3500.7,2.48291498]
[1721560442007,0.55,3501.2,3500.6,0.57240328]
[1721560443139,0.55,3501.2,3500.7,0.99317642]
[1721560443338,0.55,3501.2,3500.6,0.57240328]
[1721560443640,0.55,3501.2,3500.7,2.48285434]
[1721560443823,0.55,3501.2,3500.8,1.35862135]
[1721560444022,0.55,3501.2,3500.8,0.36549368]
[1721560444218,0.06474623,3501.1,3500.8,0.36549368]
[1721560444406,0.55,3501.0,3500.9,0.99309607]
[1721560444850,0.61471385,3501.0,3500.9,0.99309607]
[1721560445213,0.61471385,3501.0,3500.8,0.36549368]
[1721560445414,0.61471385,3501.0,3500.9,0.38576762]
[1721560445924,0.61471385,3501.0,3500.9,1.37886263]
[1721560446841,0.61471385,3501.0,3500.9,0.38576762]
[1721560447240,0.55,3501.0,3500.8,0.36549368]
[1721560457055,0.55,3501.0,3500.9,0.99309864]
[1721560458399,0.55,3501.0,3500.9,0.99309874]
[1721560461088,0.55,3501.0,3500.9,2.48273204]
[1721560461577,0.55,3501.0,3500.9,2.4827115]
[1721560461779,0.55,3501.0,3500.9,2.97464079]
[1721560464681,0.55,3501.0,3500.9,0.49192929]
[1721560464891,0.55,3501.0,3500.9,2.48271346]
[1721560465188,0.55,3501.0,3500.9,2.48271361]
[1721560466501,0.55,3501.0,3500.9,3.0823928]
[1721560467399,0.55,3501.0,3500.9,3.08236776]
[1721560467790,0.55,3501.0,3500.9,0.59967919]
[1721560468101,0.55,3501.0,3500.9,3.69395326]
[1721560469903,0.55,3501.0,3500.9,3.09427407]
[1721560472069,0.55,3501.0,3500.9,5.97935971]
[1721560472476,0.55,3501.0,3500.9,3.09427407]
[1721560473820,0.55,3501.0,3500.9,5.97938735]
[1721560474194,0.55,3501.0,3500.9,3.49669878]
[1721560474387,0.55,3501.0,3500.9,5.97931114]
[1721560477576,0.55,3501.0,3500.9,5.97930078]
[1721560478111,0.55,3501.0,3500.9,5.97929613]
[1721560479594,7.48,3502.0,3500.9,5.97929613]
[1721560479793,7.48,3502.0,3501.1,0.59984956]
[1721560479794,2.4391,3501.8,3501.1,0.59984956]
[1721560480121,0.61487587,3501.7,3501.2,2.48259735]
[1721560480324,0.61487587,3501.7,3501.3,0.99303894]
[1721560480535,0.61487587,3501.7,3501.1,0.59984956]
[1721560480844,0.61487587,3501.7,3501.2,3.23229359]
[1721560480995,0.61487587,3501.7,3501.3,2.48255855]
[1721560481204,0.55,3501.7,3501.4,0.99302342]
[1721560481413,0.55,3501.7,3501.2,0.59984956]
[1721560481610,0.55,3501.7,3501.3,2.48250893]
[1721560481895,0.55,3501.7,3501.4,0.99300357]
[1721560482098,0.55,3501.7,3501.2,0.59984956]
[1721560482441,0.55,3501.7,3501.3,2.48250792]
[1721560482638,0.55,3501.7,3501.4,2.48250215]
[1721560482816,0.55,3501.7,3501.2,0.59984956]
[1721560483137,0.55,3501.7,3501.3,2.48249605]
[1721560483439,0.55,3501.7,3501.4,0.99299842]
[1721560483607,0.55,3501.7,3501.2,0.59984956]
[1721560483810,0.55,3501.7,3501.3,2.48257763]
[1721560484013,0.55,3501.7,3501.2,0.59984956]
[1721560484345,0.55,3501.7,3501.3,2.48257755]
[1721560484551,0.55,3501.7,3501.4,0.99303102]
[1721560484708,0.55,3501.7,3501.2,0.59984956]
[1721560484909,0.55,3501.7,3501.3,2.48258228]
[1721560485110,0.55,3501.7,3501.4,0.99303291]
[1721560485309,0.55,3501.7,3501.1,0.59984956]
[1721560485518,0.55,3501.7,3501.2,2.63246146]
[1721560485718,0.55,3501.7,3501.3,2.48257598]
[1721560486052,0.55,3501.7,3501.4,0.99303039]
[1721560486249,0.55,3501.7,3501.2,0.14988548]
[1721560486451,0.55,3501.7,3501.3,2.48257562]
[1721560486607,0.55,3501.7,3501.4,0.99303025]
[1721560486941,0.55,3501.7,3501.2,0.74973504]
[1721560487152,0.55,3501.7,3501.3,2.48255063]
[1721560487360,0.55,3501.7,3501.2,0.74973504]
[1721560487508,0.55,3501.7,3501.3,2.48261513]
[1721560487854,0.55,3501.7,3501.2,0.14988548]
[1721560488057,0.55,3501.7,3501.3,2.48261488]
[1721560488243,0.55,3501.7,3501.2,0.14988548]
[1721560488443,0.55,3501.7,3501.3,2.48261605]
[1721560488648,0.55,3501.7,3501.2,0.14988548]
[1721560488826,0.55,3501.7,3501.3,2.482617]
[1721560489156,0.55,3501.7,3501.4,0.99303821]
[1721560489357,0.55,3501.7,3501.2,0.14988548]
[1721560489530,0.55,3501.7,3501.3,2.48258718]
[1721560489731,0.55,3501.7,3501.4,0.99303487]
[1721560489935,0.55,3501.7,3501.1,0.59984956]
[1721560490156,0.55,3501.7,3501.2,2.48258743]
[1721560490459,0.55,3501.7,3501.1,1.1176624]
[1721560490686,0.55,3501.7,3501.2,2.48258728]
[1721560490859,0.55,3501.7,3501.1,1.1176624]
[1721560491184,0.55,3501.7,3501.2,2.4825872]
[1721560491385,0.55,3501.7,3501.3,2.4825872]
[1721560491700,0.55,3501.7,3501.4,0.99303488]
[1721560491853,0.55,3501.7,3501.1,1.1176624]
[1721560492052,0.55,3501.7,3501.2,2.68425377]
[1721560492378,0.55,3501.7,3501.3,2.48258701]
[1721560492548,0.55,3501.7,3501.2,0.20166676]
[1721560492747,0.55,3501.7,3501.3,2.48258848]
[1721560492943,0.55,3501.7,3501.2,0.20166676]
[1721560493164,0.55,3501.7,3501.3,2.48258765]
[1721560493363,0.55,3501.7,3501.2,0.20166676]
[1721560493565,0.55,3501.7,3501.3,2.70442104]
[1721560493759,0.55,3501.7,3501.4,2.48247023]
[1721560493981,0.55,3501.7,3501.3,0.22183344]
[1721560494320,0.55,3501.7,3501.4,2.48247425]
[1721560494522,0.55,3501.7,3501.5,0.9929897]
[1721560494719,0.55,3501.7,3501.5,0.40804727]
[1721560494888,0.0648057,3501.6,3501.5,0.40804727]
[1721560495084,0.55,3501.6,3501.5,1.40102439]
[1721560495284,0.61481132,3501.6,3501.5,1.40102439]
[1721560495485,0.06481132,3501.6,3501.5,5.88332943]
[1721560495819,2.2958,3502.3,3501.5,5.88332943]
[1721560495975,0.55,3502.2,3501.6,2.4823326]
[1721560496174,0.61499303,3502.2,3501.5,2.80114727]
[1721560496377,0.61499303,3502.2,3501.6,2.9344933]
[1721560496609,0.61499303,3502.2,3501.6,0.45218355]
[1721560497917,0.61499303,3502.2,3501.7,2.48224265]
[1721560498082,0.55,3502.2,3501.8,0.99286899]
[1721560498287,0.55,3502.2,3501.9,0.99286921]
[1721560498475,0.55,3502.2,3501.7,0.59984956]
[1721560498819,0.55,3502.2,3501.8,2.48216726]
[1721560499011,2.2958,3502.5,3501.7,1.03426339]
[1721560499012,0.55,3502.4,3501.9,0.9928669]
[1721560499176,0.06488071,3502.1,3501.7,0.43441383]
[1721560499520,0.61484834,3502.0,3501.8,2.48215525]
[1721560499689,0.61484834,3502.0,3501.9,0.9928621]
[1721560499874,0.61484834,3502.0,3501.9,0.99285246]
[1721560501390,0.61484834,3502.0,3501.7,0.43441383]
[1721560501581,0.61484834,3502.0,3501.8,2.72069261]
[1721560501801,0.61484834,3502.0,3501.9,0.99285896]
[1721560502214,0.61484834,3502.0,3501.8,0.23854521]
[1721560502423,0.61484834,3502.0,3501.9,2.4821095]
[1721560502774,0.61484834,3502.0,3501.9,2.48205131]
[1721560502974,0.61484834,3502.0,3501.9,3.17822782]
[1721560503376,0.06484834,3502.0,3501.9,3.17822782]
[1721560503577,0.06484834,3502.0,3501.9,3.77807738]
[1721560503912,0.06487215,3502.0,3501.9,3.77807738]
[1721560504124,2.3558,3502.7,3501.9,3.77807738]
[1721560504276,0.61503397,3502.5,3502.1,2.3079]
[1721560504472,0.61503397,3502.5,3502.0,0.72235278]
[1721560505980,0.61503397,3502.5,3501.9,2.3079]
[1721560506208,0.61503397,3502.5,3502.0,0.99276033]
[1721560506372,0.61503397,3502.5,3501.9,2.3079]
[1721560506710,0.61503397,3502.5,3502.0,0.99276023]
[1721560506907,0.61503397,3502.5,3501.9,2.3079]
[1721560507109,0.61503397,3502.5,3502.0,1.3073883]
[1721560507324,0.61503397,3502.5,3502.0,0.31462948]
[1721560510756,0.55,3502.5,3502.0,0.31462948]
[1721560516223,0.55,3502.5,3501.8,0.23854521]
[1721560518017,0.55,3502.5,3501.9,0.99273422]
[1721560518258,0.55,3502.5,3501.8,0.23854521]
[1721560518426,0.55,3502.5,3501.9,0.99273405]
[1721560518628,0.55,3502.5,3501.8,0.23854521]
[1721560518826,0.55,3502.5,3501.9,0.31462948]
[1721560519728,0.55,3502.5,3501.9,0.37173285]
[1721560520345,0.55,3502.5,3501.9,0.36275685]
[1721560520573,0.55,3502.5,3502.0,2.3538]
[1721560520574,0.06500531,3502.4,3502.0,2.3538]
[1721560520930,0.55,3502.5,3502.0,2.3538]
[1721560521715,0.55,3502.5,3502.1,2.48169025]
[1721560521918,0.55,3502.5,3502.0,2.3538]
[1721560521919,0.06500531,3502.4,3502.0,2.3538]
[1721560522223,0.55,3502.5,3502.0,2.3538]
[1721560522224,0.55,3502.5,3502.1,2.48167018]
[1721560522553,0.06500531,3502.4,3502.2,0.84353197]
[1721560524670,2.3655,3503.0,3502.2,0.84353197]
[1721560524963,2.3655,3503.0,3502.3,0.05709952]
[1721560525123,0.06503289,3502.5,3502.3,0.05709952]
[1721560526561,0.06503289,3502.5,3502.2,0.84353197]
[1721560526861,0.06503289,3502.5,3502.3,0.3197332]
[1721560532885,0.06503289,3502.5,3502.1,1.48901834]
[1721560533189,2.3655,3502.5,3501.9,3.59984956]
[1721560533339,0.55,3502.4,3501.8,3.0]
[1721560533683,0.55,3502.4,3501.6,3.59984956]
[1721560533831,0.55,3502.4,3501.7,3.36582821]
[1721560534036,0.55,3502.4,3501.8,3.99280449]
[1721560534264,0.55,3502.4,3501.7,0.88381698]
[1721560534737,0.55,3502.4,3501.8,0.99280265]
[1721560534938,0.55,3502.4,3501.7,0.88381698]
[1721560535149,0.55,3502.4,3501.8,0.68374665]
[1721560535739,0.55,3502.4,3501.9,4.82737936]
[1721560535978,2.4391,3502.8,3502.0,2.48187936]
[1721560535979,0.55,3502.5,3502.0,2.48187936]
[1721560536239,0.55,3502.5,3501.9,2.94534956]
[1721560536240,0.55,3502.5,3502.1,0.99278287]
[1721560536464,0.55,3502.5,3501.9,2.94534956]
[1721560536791,0.55,3502.5,3502.0,3.02297256]
[1721560536956,0.55,3502.5,3502.1,0.99271243]
[1721560537288,0.06509099,3502.4,3502.0,0.54119184]
[1721560537440,0.06509099,3502.4,3502.1,0.9927342]
[1721560537776,0.06505863,3502.3,3502.0,0.54119184]
[1721560537950,0.06505863,3502.3,3502.1,2.89880998]
[1721560538133,2.4391,3502.8,3502.1,0.41702881]
[1721560538337,2.4391,3502.8,3502.2,0.99271253]
[1721560538338,0.06510069,3502.5,3502.2,0.99271253]
[1721560538552,0.06510069,3502.5,3502.1,0.41702881]
[1721560538750,0.06510069,3502.5,3502.2,0.99271275]
[1721560538972,0.06510069,3502.5,3502.1,0.41702881]
[1721560539167,0.06510069,3502.5,3502.2,1.32895077]
[1721560539342,0.06510069,3502.5,3502.2,0.33623784]
[1721560540263,0.06510069,3502.5,3502.1,0.41702881]
[1721560540653,0.06510069,3502.5,3502.2,0.99274185]
[1721560540869,0.06510069,3502.5,3502.1,0.41702881]
[1721560541071,0.06510069,3502.5,3502.2,0.99274187]
[1721560541241,0.06510069,3502.5,3502.1,0.41702881]
[1721560541437,0.06510069,3502.5,3502.2,2.48185468]
[1721560541742,2.4391,3502.8,3502.3,0.99271698]
[1721560541943,2.4391,3502.8,3502.1,1.01687837]
[1721560541944,0.0651732,3502.5,3502.1,1.01687837]
[1721560542272,0.0651732,3502.5,3502.2,2.90793926]
[1721560542484,0.0651732,3502.5,3502.3,0.99272036]
[1721560542655,2.4391,3502.8,3502.2,0.42613836]
[1721560542851,0.06514084,3502.4,3502.2,0.42613836]
[1721560543052,2.4391,3502.8,3502.2,0.42613836]
[1721560543581,0.0651732,3502.5,3502.3,0.99273925]
[1721560543783,0.0651732,3502.5,3502.2,0.42613836]
[1721560544075,0.0651732,3502.5,3502.3,0.99274163]
[1721560544373,0.0651732,3502.5,3502.2,0.42613836]
[1721560544575,0.0651732,3502.5,3502.3,2.4818377]
[1721560544777,0.0651732,3502.5,3502.2,0.42613836]
[1721560544980,0.0651732,3502.5,3502.3,2.48181175]
[1721560545175,0.0651732,3502.5,3502.4,0.99272459]
[1721560545876,0.0651732,3502.5,3502.1,0.59984956]
[1721560546184,0.0651732,3502.5,3502.2,2.48184581]
[1721560546377,0.0651732,3502.5,3502.3,2.48184581]
[1721560546685,0.0651732,3502.5,3502.1,1.17252706]
[1721560546686,2.4391,3502.8,3502.1,1.17252706]
[1721560546900,0.06521358,3502.4,3502.2,2.48185307]
[1721560547179,0.06521358,3502.4,3502.1,1.17252706]
[1721560547180,2.4391,3502.8,3502.3,2.48185307]
[1721560547503,2.4391,3502.8,3502.4,0.99273864]
[1721560547788,0.06525726,3502.5,3502.1,1.17252706]
[1721560548105,0.06525726,3502.5,3502.2,3.52339374]
[1721560548249,2.4391,3502.8,3502.3,2.48184095]
[1721560548449,2.4391,3502.8,3502.4,0.99273638]
[1721560548759,0.06525726,3502.5,3502.2,0.59984956]
[1721560548944,0.06525726,3502.5,3502.3,2.48184548]
[1721560549147,0.06525726,3502.5,3502.1,1.17252706]
[1721560549348,0.06525726,3502.5,3502.2,2.48190278]
[1721560549590,2.9891,3502.4,3502.3,0.99276111]
[1721560549748,2.9891,3502.4,3502.0,0.59984956]
[1721560549958,2.9891,3502.4,3502.1,2.48199243]
[1721560550267,0.06519572,3502.3,3502.2,0.99279697]
[1721560550454,0.61519572,3502.3,3502.2,0.99279697]
[1721560550849,0.61519572,3502.3,3501.9,0.59984956]
[1721560551072,0.55,3502.2,3502.0,0.99283401]
[1721560551278,0.55,3502.2,3501.8,0.59984956]
[1721560551462,2.4391,3502.2,3501.9,2.48215301]
[1721560551668,2.4391,3502.2,3501.7,0.59984956]
[1721560551669,2.4391,3502.0,3501.7,0.59984956]
[1721560551873,0.55,3501.9,3501.4,0.59984956]
[1721560552175,0.6151629,3501.9,3501.5,2.48253853]
[1721560552344,0.6151629,3501.9,3501.3,0.59984956]
[1721560552548,0.6151629,3501.9,3501.4,2.48250836]
[1721560552745,0.6151629,3501.9,3501.5,0.99300334]
[1721560552971,0.6151629,3501.9,3501.3,0.59984956]
[1721560553182,0.6151629,3501.9,3501.4,2.48250788]
[1721560553389,0.6151629,3501.9,3501.5,0.99300312]
[1721560553593,0.6151629,3501.9,3501.2,0.59984956]
[1721560553767,0.6151629,3501.9,3501.3,2.48250755]
[1721560553966,0.55,3501.9,3501.4,2.48250755]
[1721560554296,0.55,3501.9,3501.2,1.8976024]
[1721560554592,0.55,3501.9,3501.3,2.48243378]
[1721560554795,0.55,3501.9,3501.2,1.8976024]
[1721560554796,0.55,3501.9,3501.4,0.99297351]
[1721560555093,0.55,3501.9,3501.2,1.8976024]
[1721560555247,0.06501065,3501.8,3501.3,2.48250778]
[1721560555451,0.55,3501.7,3501.4,0.99300311]
[1721560555688,0.55,3501.9,3501.2,1.29775284]
[1721560555855,0.55,3501.9,3501.3,2.48250911]
[1721560556056,0.55,3501.9,3501.4,0.99300349]
[1721560556356,0.55,3501.9,3501.2,1.8976024]
[1721560556555,0.55,3501.9,3501.3,2.48250723]
[1721560556768,0.55,3501.9,3501.2,1.29775284]
[1721560556954,0.55,3501.9,3501.3,2.4825069]
[1721560557156,0.55,3501.9,3501.4,0.99300276]
[1721560557493,0.55,3501.9,3501.2,0.59984956]
[1721560557801,0.55,3501.9,3501.3,2.48243395]
[1721560557972,0.55,3501.9,3501.4,0.99297358]
[1721560558303,0.55,3501.9,3501.0,0.89900521]
[1721560558304,0.55,3501.9,3501.2,0.59984956]
[1721560558454,0.55,3501.9,3501.3,2.48237118]
[1721560558651,0.55,3501.9,3501.4,0.99294847]
[1721560558974,0.55,3501.9,3501.0,0.89900521]
[1721560558975,0.55,3501.9,3501.1,0.59984956]
[1721560559173,0.55,3501.9,3501.1,1.1696024]
[1721560559367,0.55,3501.9,3501.2,2.48243]
[1721560559594,0.55,3501.9,3501.1,1.1696024]
[1721560559595,0.55,3501.9,3501.1,0.56975284]
[1721560559799,0.55,3501.9,3501.2,2.48248501]
[1721560559973,0.55,3501.9,3501.3,2.48245544]
[1721560560156,0.55,3501.9,3501.1,1.1696024]
[1721560560356,0.55,3501.9,3501.2,2.98928799]
[1721560560577,0.55,3501.9,3501.3,2.48242723]
[1721560560883,0.55,3501.9,3501.2,0.50686076]
[1721560561087,0.55,3501.9,3501.3,0.99297081]
[1721560561289,0.55,3501.9,3501.2,0.50686076]
[1721560561456,0.55,3501.9,3501.3,0.99297076]
[1721560561652,0.55,3501.9,3501.2,0.50686076]
[1721560561903,0.55,3501.9,3501.3,0.9929708]
[1721560562080,0.55,3501.9,3501.2,0.50686076]
[1721560562387,0.55,3501.9,3501.3,0.99297084]
[1721560562581,0.55,3501.9,3501.2,0.50686076]
[1721560563087,0.55,3501.9,3501.0,0.59984956]
[1721560563300,0.55,3501.9,3501.1,2.48251163]
[1721560563459,0.55,3501.9,3501.2,0.99300465]
[1721560563661,2.3036,3501.8,3501.0,0.59984956]
[1721560563977,2.3036,3501.8,3501.1,2.4825144]
[1721560563978,0.55,3501.7,3501.1,2.4825144]
[1721560564160,0.55,3501.7,3501.2,0.99300576]
[1721560564361,0.55,3501.7,3501.1,0.69813692]
[1721560564585,0.55,3501.7,3501.2,0.99300776]
[1721560564768,0.55,3501.7,3501.1,0.69813692]
[1721560564977,0.55,3501.7,3501.2,0.99300776]
[1721560565295,0.55,3501.7,3501.1,0.69813692]
[1721560565485,0.55,3501.7,3501.2,0.99300782]
[1721560565703,0.55,3501.7,3501.1,0.69813692]
[1721560565908,0.55,3501.7,3501.2,0.99300814]
[1721560566087,0.55,3501.7,3501.1,0.69813692]
[1721560566287,0.55,3501.7,3501.2,0.993008]
[1721560566523,0.55,3501.7,3501.1,0.69813692]
[1721560566820,0.55,3501.7,3501.2,0.99300818]
[1721560567018,0.55,3501.7,3501.1,0.69813692]
[1721560567219,0.55,3501.7,3501.2,0.99300807]
[1721560567519,0.55,3501.7,3501.1,0.69813692]
[1721560567685,0.55,3501.7,3501.2,0.99300698]
[1721560567887,0.55,3501.7,3501.1,0.69813692]
[1721560574031,0.55,3501.7,3501.2,0.99298386]
[1721560574235,0.55,3501.7,3501.1,0.69813692]
[1721560574417,0.55,3501.7,3501.2,0.99300096]
[1721560574631,0.55,3501.7,3501.1,0.69813692]
[1721560574933,0.55,3501.7,3501.2,0.99299954]
[1721560575128,0.55,3501.7,3501.1,0.69813692]
[1721560575332,0.55,3501.7,3501.2,0.99298653]
[1721560575535,0.55,3501.7,3501.1,0.69813692]
[1721560575699,0.55,3501.7,3501.2,0.9929826]
[1721560575897,0.55,3501.7,3501.1,0.69813692]
[1721560576098,2.2737,3502.1,3501.2,2.53955694]
[1721560576295,2.2737,3502.1,3501.3,1.60792281]
[1721560576532,2.2737,3502.1,3501.3,0.61494434]
[1721560576533,0.55,3502.0,3501.3,0.61494434]
[1721560576864,0.55,3502.0,3501.4,0.99290424]
[1721560577137,0.55,3502.0,3501.3,0.61494434]
[1721560577306,0.55,3502.0,3501.4,0.99290545]
[1721560577506,0.55,3502.0,3501.4,0.52177363]
[1721560577919,2.2737,3501.9,3501.1,1.29798648]
[1721560578120,0.55,3501.8,3501.2,0.99293975]
[1721560578339,0.55,3501.8,3501.0,0.59984956]
[1721560578504,0.55,3501.8,3501.1,2.48250621]
[1721560578704,0.55,3501.8,3501.0,3.0]
[1721560578909,0.55,3501.8,3501.1,2.48257573]
[1721560579116,0.55,3501.8,3501.0,3.0]
[1721560579318,0.55,3501.8,3501.1,2.48259758]
[1721560579516,0.55,3501.8,3500.9,0.59984956]
[1721560579517,0.55,3501.8,3501.0,3.0]
[1721560579717,0.55,3501.8,3501.1,2.48257916]
[1721560579913,0.55,3501.8,3501.2,0.99301435]
[1721560580117,0.55,3501.8,3501.1,3.0]
[1721560580321,0.55,3501.8,3501.2,0.99301418]
[1721560580521,0.55,3501.8,3500.9,3.59984956]
[1721560580736,0.55,3501.8,3501.0,3.36224962]
[1721560580936,0.55,3501.8,3501.1,5.48256783]
[1721560581236,0.55,3501.8,3501.2,0.99302713]
[1721560581540,0.55,3501.8,3501.0,1.47953135]
[1721560581741,0.55,3501.8,3501.1,2.48252616]
[1721560581926,0.55,3501.8,3501.2,0.99301046]
[1721560582131,0.55,3501.8,3501.0,4.47953135]
[1721560582332,0.55,3501.8,3501.1,3.2189857]
[1721560582641,0.55,3501.8,3501.2,0.99301029]
[1721560582940,0.55,3501.8,3501.1,0.73645997]
[1721560583108,0.55,3501.8,3501.2,0.99300579]
[1721560583307,0.55,3501.8,3501.1,0.73645997]
[1721560583520,0.55,3501.8,3501.2,0.99301323]
[1721560583860,0.55,3501.8,3501.1,0.73645997]
[1721560584002,0.55,3501.8,3500.9,0.59984956]
[1721560584208,0.55,3501.8,3501.0,2.48258547]
[1721560584405,0.55,3501.8,3501.1,2.48258521]
[1721560584647,0.55,3501.8,3501.0,3.0]
[1721560584822,0.55,3501.8,3501.1,2.48258525]
[1721560585016,0.55,3501.8,3501.1,0.3636379]
[1721560585912,0.55,3501.8,3501.2,0.99301971]
[1721560586123,0.55,3501.8,3501.1,0.3636379]
[1721560586413,0.55,3501.8,3501.2,0.99302033]
[1721560586624,0.55,3501.8,3501.1,3.3636379]
[1721560586830,0.55,3501.8,3501.2,0.9930226]
[1721560587144,0.55,3501.8,3501.1,0.3636379]
[1721560587357,0.55,3501.8,3501.2,0.99302356]
[1721560587553,0.55,3501.8,3501.1,0.3636379]
[1721560587718,0.55,3501.8,3501.2,0.9930235]
[1721560587918,0.55,3501.8,3501.3,0.99298899]
[1721560588227,0.55,3501.8,3501.4,0.99296572]
[1721560588426,0.55,3501.8,3501.5,0.9929256]
[1721560588630,0.55,3501.8,3501.3,0.20135961]
[1721560588827,0.55,3501.8,3501.4,2.48237179]
[1721560589031,0.55,3501.8,3501.3,0.20135961]
[1721560589231,0.55,3501.8,3501.4,2.91992493]
[1721560589551,0.55,3501.8,3501.5,0.99293947]
[1721560589728,0.55,3501.8,3501.4,0.43757523]
[1721560590047,0.55,3501.8,3501.5,0.99293738]
[1721560590346,0.55,3501.8,3501.4,0.43757523]
[1721560590545,0.55,3501.8,3501.5,2.48232405]
[1721560590715,0.55,3501.8,3501.4,0.43757523]
[1721560590922,0.55,3501.8,3501.5,2.48232418]
[1721560591118,2.2737,3501.9,3501.5,0.37211086]
[1721560591533,2.2737,3501.9,3501.4,0.43757523]
[1721560591733,2.2737,3501.9,3501.5,0.99295142]
[1721560591952,2.2737,3501.9,3501.4,0.43757523]
[1721560592140,2.2737,3501.9,3501.5,0.99297476]
[1721560592326,2.2737,3501.9,3501.4,0.43757523]
[1721560592525,2.2737,3501.9,3501.5,0.99297478]
[1721560592744,2.2737,3501.9,3501.4,0.43757523]
[1721560593246,2.2737,3501.9,3501.5,0.99299978]
[1721560593559,2.2737,3501.9,3501.3,0.59984956]
[1721560593759,2.2737,3501.9,3501.4,2.48246853]
[1721560594054,2.2737,3501.9,3501.1,3.89900521]
[1721560594055,2.2737,3501.9,3501.5,0.99298741]
[1721560594224,2.2737,3501.9,3501.2,0.59984956]
[1721560594423,2.2737,3501.9,3501.3,3.08236377]
[1721560594653,2.2737,3501.9,3501.4,2.48251421]
[1721560594856,2.2737,3501.9,3501.5,0.99300568]
[1721560595054,2.2737,3501.9,3501.3,0.59984956]
[1721560595241,2.2737,3501.9,3501.4,2.48251093]
[1721560595434,2.2737,3501.9,3501.5,2.48251114]
[1721560595624,2.2737,3501.9,3501.6,0.99300437]
[1721560595825,2.2737,3501.9,3501.3,0.59984956]
[1721560596025,2.2737,3501.9,3501.4,2.48251135]
[1721560596236,2.2737,3501.9,3501.5,2.48251135]
[1721560596437,2.2737,3501.9,3501.6,0.99300454]
[1721560596637,2.2737,3501.9,3501.4,0.59984956]
[1721560596839,2.2737,3501.9,3501.5,2.48251235]
[1721560597044,2.2737,3501.9,3501.6,0.99300494]
[1721560597358,2.2737,3501.9,3501.7,0.99300326]
[1721560597571,2.2737,3501.9,3501.4,0.59984956]
[1721560597773,2.2737,3501.9,3501.5,2.48250793]
[1721560598074,2.2737,3501.9,3501.6,2.48250793]
[1721560598223,2.2737,3501.9,3501.4,0.59984956]
[1721560598224,2.2737,3501.9,3501.7,0.99300317]
[1721560598424,2.2737,3501.9,3501.4,0.59984956]
[1721560598658,2.2737,3501.9,3501.5,2.48250941]
[1721560598874,2.2737,3501.9,3501.6,2.48250941]
[1721560599075,2.2737,3501.9,3501.7,0.99300376]
[1721560599228,2.2737,3501.9,3501.4,0.59984956]
[1721560599433,2.2737,3501.9,3501.5,2.48250888]
[1721560599663,2.3431,3501.7,3501.6,2.48250888]
[1721560599967,2.3431,3501.7,3501.4,0.59984956]
[1721560599968,2.8931,3501.7,3501.4,0.59984956]
[1721560600266,0.06498494,3501.6,3501.5,2.48250958]
[1721560600467,2.3431,3501.7,3501.5,2.48250958]
[1721560600759,2.3431,3501.7,3501.6,0.99300369]
[1721560600934,2.8931,3501.7,3501.6,0.99300369]
[1721560601135,2.8931,3501.7,3501.6,2.4825048]
[1721560601341,2.95811731,3501.7,3501.6,0.99300369]
[1721560602759,2.95811731,3501.7,3501.3,0.59984956]
[1721560602966,0.55,3501.6,3501.4,2.48262515]
[1721560604866,0.55,3501.6,3501.3,0.59984956]
[1721560605056,2.3431,3502.0,3501.3,0.59984956]
[1721560605230,0.55,3501.9,3501.3,0.59984956]
[1721560605435,0.55,3501.9,3501.3,2.24413913]
[1721560605663,0.55,3501.9,3501.3,1.64428957]
[1721560607570,0.55,3501.9,3501.1,3.0]
[1721560607864,0.55,3501.9,3501.0,2.3175]
[1721560610240,0.29775438,3502.8,3500.9,3.0]
[1721560610241,2.4837,3502.7,3501.2,2.4379]
[1721560610565,0.06267525,3501.8,3501.4,2.4379]
[1721560610774,2.4837,3503.0,3501.5,0.90759679]
[1721560610977,2.4837,3503.0,3501.6,2.4379]
[1721560611155,0.06068117,3502.5,3501.6,2.4379]
[1721560611358,0.06068117,3502.5,3501.6,3.05709669]
[1721560611547,0.06068117,3502.5,3501.7,2.4379]
[1721560611872,0.06064881,3502.4,3501.9,2.4379]
[1721560612078,2.4837,3503.3,3501.9,2.4379]
[1721560612280,2.4837,3503.3,3502.0,0.05709494]
[1721560613979,2.4837,3503.3,3502.1,2.4379]
[1721560614948,2.4837,3503.3,3502.1,2.49499419]
[1721560615160,2.4837,3503.3,3502.2,0.54949942]
[1721560617756,2.4837,3503.3,3502.2,3.54949942]
[1721560617964,2.4837,3503.3,3502.3,0.05709182]
[1721560618169,2.4837,3503.3,3502.2,3.60659042]
[1721560618573,2.4837,3503.3,3502.2,3.54949942]
[1721560618757,2.4837,3503.3,3502.3,3.08012879]
[1721560618959,2.4837,3503.3,3502.3,1.59129548]
[1721560619164,2.4837,3503.3,3502.3,0.59873994]
[1721560628276,2.4424,3502.9,3502.3,0.59873994]
[1721560628708,0.06022468,3502.5,3502.3,0.59873994]
[1721560637132,2.4297,3502.4,3502.2,3.0]
[1721560637420,2.48995764,3502.4,3501.7,0.59695297]
[1721560637643,2.4297,3502.4,3501.8,2.48176267]
[1721560637945,2.4297,3502.4,3501.6,5.99595297]
[1721560637946,2.4297,3502.4,3501.9,0.84777156]
[1721560638305,0.06022153,3502.3,3501.9,0.84777156]
[1721560638694,2.4297,3502.4,3501.9,0.84777156]
[1721560638902,0.06017222,3502.2,3501.9,0.84777156]
[1721560639101,2.4297,3502.4,3502.0,0.83368481]
[1721560639524,0.06020459,3502.3,3501.8,1.48907633]
[1721560639724,0.06020459,3502.3,3501.9,0.9927179]
[1721560639892,2.4297,3502.4,3501.8,1.48907678]
[1721560640085,2.4297,3502.4,3501.9,0.9927177]